fUSD/lending_fUSD_20260601
["ID","MTS","AMOUNT","RATE_DAILY","PERIOD"]
[423711890,1780326639000,-1130.29353622,0.00013699,2]
[423711900,1780326639000,-1130.29353622,0.00013699,2]
[423711892,1780326639000,-1130.29353622,0.00013699,2]
[423711974,1780326640000,-798.5,0.00013889,2]
[423711973,1780326640000,-500.0,0.00013889,2]
[423711963,1780326640000,-500.0,0.00013715,2]
[423711958,1780326640000,-1126.25677359,0.00013699,2]
[423711956,1780326640000,-1126.25677359,0.00013699,2]
[423711959,1780326640000,-1126.25677359,0.00013699,2]
[423711961,1780326640000,-1126.25677353,0.00013699,2]
[423711960,1780326640000,-1126.25677353,0.00013699,2]
[423711962,1780326640000,-163.49,0.000137,2]
[423711957,1780326640000,-1126.25677359,0.00013699,2]
[423711971,1780326640000,-500.0,0.00013889,2]
[423711968,1780326640000,-166.66,0.00013836,2]
[423711969,1780326640000,-500.0,0.00013889,2]
[423711965,1780326640000,-500.0,0.00013715,4]
[423711972,1780326640000,-500.0,0.00013889,2]
[423711967,1780326640000,-222.63,0.00013787,2]
[423711985,1780326640000,-752.83169476,0.00014284,2]
[423711966,1780326640000,-500.0,0.00013715,2]
[423711970,1780326640000,-500.0,0.00013889,2]
[423711975,1780326640000,-798.5,0.00013889,2]
[423711977,1780326640000,-500.0,0.00013889,2]
[423711979,1780326640000,-166.66,0.00013973,2]
[423711980,1780326640000,-40182.55971291,0.0001399,2]
[423711953,1780326640000,-1126.25677359,0.00013699,2]
[423711964,1780326640000,-500.0,0.00013715,3]
[423711954,1780326640000,-1126.25677359,0.00013699,2]
[423711941,1780326640000,-1126.25677359,0.00013699,2]
[423711952,1780326640000,-1126.25677359,0.00013699,2]
[423711978,1780326640000,-500.0,0.00013971,2]
[423711926,1780326640000,-1130.29353622,0.00013699,2]
[423711928,1780326640000,-1130.29353622,0.00013699,2]
[423711927,1780326640000,-1130.29353622,0.00013699,2]
[423711930,1780326640000,-1130.29353622,0.00013699,2]
[423711933,1780326640000,-1130.29353622,0.00013699,2]
[423711932,1780326640000,-1130.29353622,0.00013699,2]
[423711931,1780326640000,-1130.29353622,0.00013699,2]
[423711938,1780326640000,-1126.25677359,0.00013699,2]
[423711935,1780326640000,-1126.25677359,0.00013699,2]
[423711936,1780326640000,-1126.25677359,0.00013699,2]
[423711934,1780326640000,-1126.25677359,0.00013699,2]
[423711937,1780326640000,-1126.25677359,0.00013699,2]
[423711939,1780326640000,-1126.25677359,0.00013699,2]
[423711949,1780326640000,-1126.25677359,0.00013699,2]
[423711951,1780326640000,-1126.25677359,0.00013699,2]
[423711950,1780326640000,-1126.25677359,0.00013699,2]
[423711940,1780326640000,-1126.25677359,0.00013699,2]
[423711942,1780326640000,-1126.25677359,0.00013699,2]
[423711945,1780326640000,-1126.25677359,0.00013699,2]
[423711944,1780326640000,-1126.25677359,0.00013699,2]
[423711943,1780326640000,-1126.25677359,0.00013699,2]
[423711946,1780326640000,-1126.25677359,0.00013699,2]
[423711948,1780326640000,-1126.25677359,0.00013699,2]
[423711947,1780326640000,-1126.25677359,0.00013699,2]
[423711955,1780326640000,-1126.25677359,0.00013699,2]
[423711981,1780326640000,-250.0,0.00014,2]
[423711929,1780326640000,-1130.29353622,0.00013699,2]
[423711984,1780326640000,-166.66,0.00014247,2]
[423712014,1780326640000,-798.5,0.00014999,2]
[423712013,1780326640000,-798.5,0.00014999,2]
[423712012,1780326640000,-798.5,0.00014999,2]
[423712015,1780326640000,-500.0,0.00014999,2]
[423712017,1780326640000,-300.0,0.00014999,2]
[423712016,1780326640000,-500.0,0.00014999,2]
[423712020,1780326640000,-300.0,0.00014999,2]
[423712026,1780326640000,-200.0,0.000152,3]
[423712021,1780326640000,-319.23,0.00015,2]
[423712025,1780326640000,-300.0,0.00015067,2]
[423712027,1780326640000,-511.70541345,0.000153,2]
[423712022,1780326640000,-231.76489404,0.00015,2]
[423712024,1780326640000,-300.0,0.00015067,2]
[423712030,1780326640000,-150.99,0.0001531,2]
[423712023,1780326640000,-300.0,0.00015067,2]
[423712031,1780326640000,-299.99,0.0001531,2]
[423712028,1780326640000,-798.5,0.00015309,2]
[423712033,1780326640000,-16865.34,0.00015464,2]
[423712032,1780326640000,-500.0,0.00015463,2]
[423712034,1780326640000,-2175.25,0.00015464,2]
[423712037,1780326640000,-235.4839468,0.00015528,2]
[423712036,1780326640000,-741.83,0.00015464,2]
[423712035,1780326640000,-1606.93,0.00015464,2]
[423712038,1780326640000,-996.0497299,0.00015528,2]
[423711982,1780326640000,-166.66,0.0001411,2]
[423712011,1780326640000,-798.5,0.00014999,2]
[423712009,1780326640000,-798.5,0.00014999,2]
[423712029,1780326640000,-9999.99,0.0001531,2]
[423712019,1780326640000,-300.0,0.00014999,2]
[423712018,1780326640000,-300.0,0.00014999,2]
[423711983,1780326640000,-19023.3830883,0.00014144,2]
[423711976,1780326640000,-500.0,0.00013889,2]
[423711987,1780326640000,-231.76489404,0.00014332,2]
[423711997,1780326640000,-500.0,0.00014993,2]
[423711990,1780326640000,-890.46,0.00014647,2]
[423711989,1780326640000,-500.0,0.00014636,2]
[423711988,1780326640000,-166.66,0.00014384,2]
[423711994,1780326640000,-500.0,0.00014993,2]
[423711991,1780326640000,-2000.0,0.00014887,2]
[423711992,1780326640000,-163.1,0.00014906,2]
[423711993,1780326640000,-500.0,0.00014993,2]
[423711996,1780326640000,-500.0,0.00014993,2]
[423711986,1780326640000,-1306.3773617,0.00014313,2]
[423711998,1780326640000,-798.5,0.00014993,2]
[423712010,1780326640000,-798.5,0.00014999,2]
[423711995,1780326640000,-163.43660373,0.00014993,2]
[423712008,1780326640000,-798.5,0.00014999,2]
[423712007,1780326640000,-798.5,0.00014999,2]
[423712003,1780326640000,-500.0,0.00014999,2]
[423712000,1780326640000,-500.0,0.00014993,2]
[423712006,1780326640000,-798.5,0.00014999,2]
[423712001,1780326640000,-500.0,0.00014993,2]
[423711999,1780326640000,-798.5,0.00014993,2]
[423712002,1780326640000,-500.0,0.00014999,2]
[423712005,1780326640000,-798.5,0.00014999,2]
[423712004,1780326640000,-798.5,0.00014999,2]
[423712063,1780326641000,-170.2,0.00016963,2]
[423712057,1780326641000,-1530.69863027,0.00016676,2]
[423712059,1780326641000,-1530.69863027,0.00016718,2]
[423712060,1780326641000,-1530.69863027,0.00016923,2]
[423712064,1780326641000,-170.2,0.00016963,2]
[423712055,1780326641000,-1530.69863027,0.00016585,2]
[423712058,1780326641000,-1530.69863027,0.00016712,2]
[423712067,1780326641000,-735.28,0.00016967,2]
[423712074,1780326641000,-19023.3830883,0.0001842,2]
[423712068,1780326641000,-500.0,0.00016967,2]
[423712070,1780326641000,-200.0,0.000172,2]
[423712071,1780326641000,-1328.0,0.00017788,5]
[423712073,1780326641000,-1346.3,0.0001841,2]
[423712072,1780326641000,-350.0,0.00018,2]
[423712077,1780326641000,-250.0,0.00018805,2]
[423712061,1780326641000,-170.2,0.00016963,2]
[423712075,1780326641000,-752.83169476,0.00018667,2]
[423712069,1780326641000,-543.92349054,0.00016967,2]
[423712065,1780326641000,-500.0,0.00016967,2]
[423712044,1780326641000,-1530.69863027,0.00016129,2]
[423712066,1780326641000,-500.0,0.00016967,2]
[423712079,1780326641000,-798.5,0.00018999,2]
[423712039,1780326641000,-1530.69863027,0.00015938,2]
[423712040,1780326641000,-890.46,0.00015979,2]
[423712041,1780326641000,-300.0,0.00016,2]
[423712042,1780326641000,-163.0,0.00016027,2]
[423712043,1780326641000,-1530.69863027,0.0001605,2]
[423712053,1780326641000,-1500.0,0.0001656,2]
[423712054,1780326641000,-1530.69863027,0.00016563,2]
[423712045,1780326641000,-1530.69863027,0.00016191,2]
[423712049,1780326641000,-156.7647299,0.00016403,2]
[423712051,1780326641000,-1346.3,0.00016438,2]
[423712052,1780326641000,-600.0,0.0001656,3]
[423712047,1780326641000,-1530.69863027,0.0001632,2]
[423712048,1780326641000,-1530.69863027,0.00016382,2]
[423712046,1780326641000,-1530.69863027,0.00016304,2]
[423712050,1780326641000,-300.0,0.00016437,2]
[423712056,1780326641000,-1530.69863027,0.00016595,2]
[423712062,1780326641000,-170.2,0.00016963,2]
[423712080,1780326641000,-798.5,0.00018999,2]
[423712081,1780326641000,-798.5,0.00018999,2]
[423712076,1780326641000,-500.0,0.00018804,2]
[423712096,1780326641000,-151.0,0.00019049,2]
[423712102,1780326641000,-151.0,0.00019049,2]
[423712107,1780326641000,-957.69,0.000192,7]
[423712105,1780326641000,-151.0,0.00019049,2]
[423712110,1780326641000,-1284.0,0.00019452,2]
[423712106,1780326641000,-595.7573367,0.00019108,2]
[423712113,1780326641000,-200.0,0.00019519,2]
[423712108,1780326641000,-254.11467,0.00019452,2]
[423712099,1780326641000,-151.0,0.00019049,2]
[423712109,1780326641000,-275.0,0.00019452,2]
[423712114,1780326641000,-300.0,0.00019548,2]
[423712115,1780326641000,-1481.2378076,0.00019597,2]
[423712118,1780326641000,-1667.0,0.00019755,5]
[423712117,1780326641000,-300.0,0.00019599,2]
[423712116,1780326641000,-2157.14243826,0.00019597,2]
[423712119,1780326641000,-196.73302569,0.000199,2]
[423712078,1780326641000,-798.5,0.00018999,2]
[423712120,1780326641000,-300.0,0.00019967,2]
[423712111,1780326641000,-223.0,0.00019452,2]
[423712098,1780326641000,-151.0,0.00019049,2]
[423712112,1780326641000,-417.07425918,0.00019512,2]
[423712101,1780326641000,-151.0,0.00019049,2]
[423712083,1780326641000,-300.0,0.00018999,2]
[423712097,1780326641000,-151.0,0.00019049,2]
[423712089,1780326641000,-151.0,0.00019049,2]
[423712091,1780326641000,-151.0,0.00019049,2]
[423712082,1780326641000,-798.66,0.00018999,2]
[423712086,1780326641000,-151.0,0.00019049,2]
[423712084,1780326641000,-1428.38747117,0.00019049,2]
[423712092,1780326641000,-2080.17592889,0.00019049,2]
[423712085,1780326641000,-151.0,0.00019049,2]
[423712087,1780326641000,-151.0,0.00019049,2]
[423712088,1780326641000,-151.0,0.00019049,2]
[423712090,1780326641000,-151.0,0.00019049,2]
[423712095,1780326641000,-151.0,0.00019049,2]
[423712104,1780326641000,-151.0,0.00019049,2]
[423712100,1780326641000,-151.0,0.00019049,2]
[423712093,1780326641000,-151.0,0.00019049,2]
[423712094,1780326641000,-151.0,0.00019049,2]
[423712103,1780326641000,-151.0,0.00019049,2]
[423712150,1780326642000,-247.18905207,0.000206,2]
[423712159,1780326642000,-1667.0,0.00021,2]
[423712156,1780326642000,-725.0,0.00021,2]
[423712154,1780326642000,-451.0,0.00020826,2]
[423712151,1780326642000,-1592.87721992,0.00020693,2]
[423712153,1780326642000,-247.18905207,0.000208,2]
[423712152,1780326642000,-2319.72410669,0.00020693,2]
[423712149,1780326642000,-163.0,0.00020466,2]
[423712157,1780326642000,-426.0,0.00021,2]
[423712155,1780326642000,-515.0,0.00021,2]
[423712158,1780326642000,-1768.0,0.00021,2]
[423712168,1780326642000,-705.0,0.00021,2]
[423712161,1780326642000,-338.0,0.00021,2]
[423712174,1780326642000,-9840.68831463,0.00021,2]
[423712170,1780326642000,-778.0,0.00021,2]
[423712172,1780326642000,-706.0,0.00021,2]
[423712160,1780326642000,-446.0,0.00021,2]
[423712162,1780326642000,-3221.0,0.00021,2]
[423712176,1780326642000,-15000.0,0.00021,2]
[423712164,1780326642000,-391.0,0.00021,2]
[423712166,1780326642000,-1849.0,0.00021,2]
[423712163,1780326642000,-386.0,0.00021,2]
[423712147,1780326642000,-1346.3,0.00020381,2]
[423712178,1780326642000,-6111.0,0.00021,2]
[423712145,1780326642000,-223.0,0.00020273,2]
[423712128,1780326642000,-1667.0,0.0002,2]
[423712148,1780326642000,-247.18905207,0.000204,2]
[423712184,1780326642000,-500.0,0.00021049,2]
[423712121,1780326642000,-314.99174282,0.00019999,2]
[423712122,1780326642000,-515.0,0.0002,2]
[423712126,1780326642000,-247.18905207,0.0002,2]
[423712123,1780326642000,-725.0,0.0002,2]
[423712125,1780326642000,-426.0,0.0002,2]
[423712124,1780326642000,-150.0,0.0002,2]
[423712127,1780326642000,-1768.0,0.0002,2]
[423712131,1780326642000,-3221.0,0.0002,2]
[423712133,1780326642000,-391.0,0.0002,2]
[423712130,1780326642000,-338.0,0.0002,2]
[423712146,1780326642000,-157.09,0.00020275,2]
[423712129,1780326642000,-446.0,0.0002,2]
[423712132,1780326642000,-386.0,0.0002,2]
[423712134,1780326642000,-1849.0,0.0002,2]
[423712137,1780326642000,-706.0,0.0002,2]
[423712136,1780326642000,-778.0,0.0002,2]
[423712138,1780326642000,-400.0,0.0002,2]
[423712140,1780326642000,-1059.0,0.0002,2]
[423712139,1780326642000,-5502.25,0.0002,2]
[423712141,1780326642000,-1536.04360648,0.00020145,2]
[423712144,1780326642000,-275.0,0.00020273,2]
[423712142,1780326642000,-2236.95670847,0.00020145,2]
[423712143,1780326642000,-247.18905207,0.000202,2]
[423712135,1780326642000,-705.0,0.0002,2]
[423712182,1780326642000,-6111.0,0.00021,2]
[423712276,1780326642000,-500.0,0.00022329,2]
[423712194,1780326642000,-451.0,0.00021347,2]
[423712250,1780326642000,-391.0,0.00022,2]
[423712265,1780326642000,-365.76554661,0.00022117,2]
[423712261,1780326642000,-743.69,0.00022,2]
[423712262,1780326642000,-450.0,0.00022,2]
[423712263,1780326642000,-6772.4244306,0.00022071,2]
[423712267,1780326642000,-30000.0,0.00022327,2]
[423712255,1780326642000,-705.0,0.00022,2]
[423712253,1780326642000,-1849.0,0.00022,2]
[423712259,1780326642000,-706.0,0.00022,2]
[423712257,1780326642000,-778.0,0.00022,2]
[423712271,1780326642000,-735.28,0.00022329,2]
[423712243,1780326642000,-338.0,0.00022,2]
[423712279,1780326642000,-1788.918532,0.0002233,2]
[423712290,1780326642000,-1346.3,0.00022353,2]
[423712281,1780326642000,-250771.2252742,0.0002233,2]
[423712283,1780326642000,-94694.6341738,0.0002233,2]
[423712288,1780326642000,-2586.85809042,0.00022337,2]
[423712286,1780326642000,-1537.66541106,0.00022337,2]
[423712292,1780326642000,-811.82,0.000224,7]
[423712297,1780326642000,-863.08,0.00022466,2]
[423712299,1780326642000,-1663.93,0.00022466,2]
[423712301,1780326642000,-1136.2971235,0.000225,2]
[423712295,1780326642000,-1814.02,0.00022466,2]
[423712180,1780326642000,-15000.0,0.00021,2]
[423712269,1780326642000,-500.0,0.00022329,2]
[423712235,1780326642000,-426.0,0.00022,2]
[423712273,1780326642000,-500.0,0.00022329,2]
[423712246,1780326642000,-3221.0,0.00022,2]
[423712233,1780326642000,-725.0,0.00022,2]
[423712186,1780326642000,-275.0,0.00021095,2]
[423712192,1780326642000,-2405.55389863,0.00021241,2]
[423712188,1780326642000,-223.0,0.00021095,2]
[423712199,1780326642000,-500.0,0.00021748,2]
[423712197,1780326642000,-161.58198357,0.00021661,2]
[423712204,1780326642000,-735.28,0.00021748,2]
[423712202,1780326642000,-500.0,0.00021748,2]
[423712212,1780326642000,-1712.93078311,0.00021789,2]
[423712208,1780326642000,-5502.25,0.00021755,2]
[423712217,1780326642000,-451.0,0.00021867,2]
[423712214,1780326642000,-2494.55939288,0.00021789,2]
[423712190,1780326642000,-1651.81367706,0.00021241,2]
[423712219,1780326642000,-275.0,0.00021917,2]
[423712206,1780326642000,-500.0,0.00021748,2]
[423712241,1780326642000,-446.0,0.00022,2]
[423712228,1780326642000,-175.94193982,0.00021918,2]
[423712230,1780326642000,-515.0,0.00022,2]
[423712237,1780326642000,-1768.0,0.00022,2]
[423712248,1780326642000,-386.0,0.00022,2]
[423712226,1780326642000,-5000.0,0.00021918,2]
[423712210,1780326642000,-507.40807909,0.00021774,7]
[423712224,1780326642000,-1006.96,0.00021918,2]
[423712222,1780326642000,-223.0,0.00021917,2]
[423712239,1780326642000,-1667.0,0.00022,2]
[423712368,1780326643000,-706.0,0.00024,2]
[423712365,1780326643000,-1849.0,0.00024,2]
[423712363,1780326643000,-386.0,0.00024,2]
[423712353,1780326643000,-735.28,0.00023937,2]
[423712360,1780326643000,-446.0,0.00024,2]
[423712380,1780326643000,-434.91,0.00024658,2]
[423712362,1780326643000,-3221.0,0.00024,2]
[423712359,1780326643000,-1667.0,0.00024,2]
[423712358,1780326643000,-1768.0,0.00024,2]
[423712367,1780326643000,-778.0,0.00024,2]
[423712361,1780326643000,-338.0,0.00024,2]
[423712364,1780326643000,-391.0,0.00024,2]
[423712379,1780326643000,-1000.0,0.00024658,2]
[423712370,1780326643000,-280.0,0.00024117,2]
[423712369,1780326643000,-500.0,0.00024,2]
[423712373,1780326643000,-798.07,0.000243,14]
[423712372,1780326643000,-741.83,0.00024174,2]
[423712375,1780326643000,-200.0,0.00024439,2]
[423712371,1780326643000,-466.01,0.00024174,2]
[423712376,1780326643000,-2991.49051684,0.00024529,2]
[423712374,1780326643000,-1346.3,0.00024324,2]
[423712378,1780326643000,-811.82,0.000246,7]
[423712377,1780326643000,-763.72277884,0.00024578,2]
[423712349,1780326643000,-811.82,0.000235,7]
[423712366,1780326643000,-705.0,0.00024,2]
[423712352,1780326643000,-220.96,0.00023937,2]
[423712303,1780326643000,-19023.3830883,0.00022696,2]
[423712351,1780326643000,-5502.25,0.0002351,2]
[423712315,1780326643000,-426.0,0.00023,2]
[423712317,1780326643000,-1768.0,0.00023,2]
[423712307,1780326643000,-223.0,0.00022739,2]
[423712309,1780326643000,-2682.57183977,0.00022885,2]
[423712305,1780326643000,-275.0,0.00022739,2]
[423712311,1780326643000,-515.0,0.00023,2]
[423712313,1780326643000,-725.0,0.00023,2]
[423712321,1780326643000,-446.0,0.00023,2]
[423712330,1780326643000,-391.0,0.00023,2]
[423712332,1780326643000,-1849.0,0.00023,2]
[423712328,1780326643000,-386.0,0.00023,2]
[423712347,1780326643000,-2781.82699784,0.00023433,2]
[423712326,1780326643000,-3221.0,0.00023,2]
[423712324,1780326643000,-338.0,0.00023,2]
[423712334,1780326643000,-705.0,0.00023,2]
[423712341,1780326643000,-3439.0,0.00023,2]
[423712339,1780326643000,-706.0,0.00023,2]
[423712337,1780326643000,-778.0,0.00023,2]
[423712354,1780326643000,-2884.75459676,0.00023981,2]
[423712345,1780326643000,-305.06726028,0.00023333,2]
[423712355,1780326643000,-515.0,0.00024,2]
[423712356,1780326643000,-725.0,0.00024,2]
[423712343,1780326643000,-752.83169476,0.00023051,2]
[423712357,1780326643000,-426.0,0.00024,2]
[423712319,1780326643000,-1667.0,0.00023,2]
[423712384,1780326643000,-3551.0,0.00024738,2]
[423712409,1780326643000,-1852.30352785,0.00025,2]
[423712381,1780326643000,-150.0,0.00024688,2]
[423712427,1780326643000,-2000.0,0.00025828,2]
[423712428,1780326643000,-2000.0,0.00025828,2]
[423712418,1780326643000,-432.38936914,0.00025397,2]
[423712422,1780326643000,-200.0,0.00025806,2]
[423712423,1780326643000,-2000.0,0.00025828,2]
[423712424,1780326643000,-2000.0,0.00025828,2]
[423712419,1780326643000,-811.82,0.000255,7]
[423712421,1780326643000,-2263.0,0.000258,3]
[423712425,1780326643000,-2000.0,0.00025828,2]
[423712429,1780326643000,-2000.0,0.00025828,2]
[423712430,1780326643000,-2000.0,0.00025828,2]
[423712426,1780326643000,-2000.0,0.00025828,2]
[423712431,1780326643000,-2000.0,0.00025828,2]
[423712432,1780326643000,-2000.0,0.00025828,2]
[423712433,1780326643000,-2000.0,0.00025828,2]
[423712434,1780326643000,-2000.0,0.00025828,2]
[423712436,1780326643000,-2000.0,0.00025828,2]
[423712439,1780326643000,-671.13,0.00025828,2]
[423712435,1780326643000,-2000.0,0.00025828,2]
[423712438,1780326643000,-2000.0,0.00025828,2]
[423712437,1780326643000,-2000.0,0.00025828,2]
[423712442,1780326643000,-550.0,0.00026,2]
[423712441,1780326643000,-500.0,0.00026,2]
[423712382,1780326643000,-500.0,0.00024737,2]
[423712440,1780326643000,-595.7573367,0.00025831,2]
[423712416,1780326643000,-322.85,0.0002502,2]
[423712420,1780326643000,-466.01,0.00025786,2]
[423712414,1780326643000,-713.53095286,0.00025,2]
[423712385,1780326643000,-1357.0,0.00024738,2]
[423712388,1780326643000,-1273.0,0.00024739,2]
[423712386,1780326643000,-929.0,0.00024738,2]
[423712390,1780326643000,-6068.0,0.00024739,2]
[423712383,1780326643000,-165.205,0.00024738,2]
[423712389,1780326643000,-1227.873,0.00024739,2]
[423712392,1780326643000,-743.69,0.00024884,7]
[423712391,1780326643000,-3639.0,0.00024739,2]
[423712393,1780326643000,-477.52,0.000249,14]
[423712398,1780326643000,-441.65001271,0.00025,2]
[423712396,1780326643000,-519.0,0.00025,2]
[423712394,1780326643000,-1922.45258413,0.000249,2]
[423712415,1780326643000,-1000.0,0.00025,2]
[423712395,1780326643000,-163.0,0.00024904,2]
[423712417,1780326643000,-5502.25,0.00025266,7]
[423712413,1780326643000,-793.78091631,0.00025,2]
[423712403,1780326643000,-3221.93836112,0.00025,2]
[423712397,1780326643000,-740.8330122,0.00025,2]
[423712411,1780326643000,-714.72412372,0.00025,2]
[423712407,1780326643000,-410.45074324,0.00025,2]
[423712405,1780326643000,-398.08824232,0.00025,2]
[423712402,1780326643000,-353.52267832,0.00025,2]
[423712400,1780326643000,-1681.1352666,0.00025,2]
[423712401,1780326643000,-462.63813091,0.00025,2]
[423712399,1780326643000,-1784.35216406,0.00025,2]
[423712387,1780326643000,-525.0,0.00024739,2]
[423712481,1780326644000,-173.0,0.00027,7]
[423712484,1780326644000,-156.7647299,0.00027065,2]
[423712479,1780326644000,-2000.0,0.00027,2]
[423712485,1780326644000,-200.0,0.00027379,2]
[423712473,1780326644000,-2000.0,0.00026744,2]
[423712478,1780326644000,-2623.19273682,0.000269,2]
[423712477,1780326644000,-1612.97,0.00026744,2]
[423712469,1780326644000,-4918.90261399,0.00026712,2]
[423712472,1780326644000,-2000.0,0.00026744,2]
[423712487,1780326644000,-288.25957943,0.00027397,7]
[423712486,1780326644000,-157.468849,0.00027394,7]
[423712482,1780326644000,-2588.176592,0.0002701,2]
[423712492,1780326644000,-1488.151599,0.00027397,2]
[423712489,1780326644000,-209.3860962,0.00027397,2]
[423712497,1780326644000,-328.645014,0.00027397,2]
[423712488,1780326644000,-291.42,0.00027397,30]
[423712498,1780326644000,-1500.0,0.00027397,2]
[423712491,1780326644000,-1488.151599,0.00027397,2]
[423712493,1780326644000,-1488.151599,0.00027397,2]
[423712490,1780326644000,-1488.151599,0.00027397,2]
[423712495,1780326644000,-328.645014,0.00027397,2]
[423712494,1780326644000,-328.645014,0.00027397,2]
[423712496,1780326644000,-328.645014,0.00027397,2]
[423712468,1780326644000,-5531.0,0.000267,5]
[423712480,1780326644000,-167.0,0.00027,7]
[423712467,1780326644000,-196.73302567,0.00026609,21]
[423712463,1780326644000,-432.38936914,0.00026397,2]
[423712470,1780326644000,-8081.26633225,0.00026712,2]
[423712450,1780326644000,-2000.0,0.00026196,2]
[423712453,1780326644000,-2000.0,0.00026196,2]
[423712452,1780326644000,-2000.0,0.00026196,2]
[423712444,1780326644000,-6006.8,0.00026027,2]
[423712451,1780326644000,-2000.0,0.00026196,2]
[423712443,1780326644000,-215.65015035,0.00026,7]
[423712447,1780326644000,-33240.6068,0.00026129,2]
[423712449,1780326644000,-500.0,0.00026195,2]
[423712455,1780326644000,-2000.0,0.00026196,2]
[423712457,1780326644000,-2000.0,0.00026196,2]
[423712456,1780326644000,-2000.0,0.00026196,2]
[423712471,1780326644000,-2000.0,0.00026744,2]
[423712459,1780326644000,-2000.0,0.00026196,2]
[423712499,1780326644000,-300.0,0.00027397,2]
[423712461,1780326644000,-688.28,0.00026196,2]
[423712460,1780326644000,-2000.0,0.00026196,2]
[423712458,1780326644000,-2000.0,0.00026196,2]
[423712462,1780326644000,-1346.3,0.00026296,2]
[423712454,1780326644000,-2000.0,0.00026196,2]
[423712466,1780326644000,-200.0,0.00026593,2]
[423712474,1780326644000,-2000.0,0.00026744,2]
[423712476,1780326644000,-2000.0,0.00026744,2]
[423712475,1780326644000,-2000.0,0.00026744,2]
[423712465,1780326644000,-735.28,0.00026528,2]
[423712464,1780326644000,-811.82,0.000264,7]
[423712501,1780326644000,-273.268058,0.00027397,2]
[423712483,1780326644000,-5502.25,0.00027021,7]
[423712503,1780326644000,-273.268058,0.00027397,2]
[423712533,1780326644000,-6068.0,0.00027739,2]
[423712532,1780326644000,-1226.0,0.00027739,2]
[423712534,1780326644000,-3639.0,0.00027739,2]
[423712538,1780326644000,-500.0,0.00027987,2]
[423712537,1780326644000,-500.0,0.00027987,2]
[423712536,1780326644000,-72660.72442165,0.00027785,2]
[423712541,1780326644000,-94694.6341738,0.00027988,2]
[423712542,1780326644000,-151.0,0.00027988,7]
[423712539,1780326644000,-1788.918532,0.00027988,2]
[423712540,1780326644000,-250771.2252742,0.00027988,2]
[423712535,1780326644000,-743.69,0.00027769,7]
[423712543,1780326644000,-1409.269871,0.00027988,7]
[423712544,1780326644000,-1409.269871,0.00027988,7]
[423712550,1780326644000,-442.329083,0.00027988,7]
[423712546,1780326644000,-1409.269871,0.00027988,7]
[423712552,1780326644000,-520.118677,0.00027988,7]
[423712551,1780326644000,-520.118677,0.00027988,7]
[423712553,1780326644000,-520.118677,0.00027988,7]
[423712545,1780326644000,-1409.269871,0.00027988,7]
[423712554,1780326644000,-520.118677,0.00027988,7]
[423712547,1780326644000,-442.329083,0.00027988,7]
[423712549,1780326644000,-442.329083,0.00027988,7]
[423712548,1780326644000,-442.329083,0.00027988,7]
[423712504,1780326644000,-434.91,0.00027397,2]
[423712556,1780326644000,-151.0,0.00027988,7]
[423712531,1780326644000,-1273.0,0.00027739,2]
[423712526,1780326644000,-151.749525,0.00027738,7]
[423712555,1780326644000,-151.0,0.00027988,7]